bitfinex/quotes_SOLUSD_20220109
["timestamp","ask_amount","ask_price","bid_price","bid_amount"]
[1641770652735,0.26,140.41,140.35,10.6844]
[1641770652937,0.26,140.41,140.31,35.8746]
[1641770653135,0.26,140.41,140.34,22.78404867]
[1641770653336,0.26,140.41,140.31,1.78]
[1641770653538,9.94,140.4,140.27,1.78]
[1641770653739,1.78,140.39,140.27,0.25]
[1641770653936,9.94,140.38,140.28,0.26]
[1641770654436,0.26,140.37,140.28,29.80372165]
[1641770654636,0.26,140.37,140.29,1.78]
[1641770654837,0.26,140.37,140.31,10.6875]
[1641770655037,10.19,140.38,140.32,27.76314219]
[1641770655240,9.94,140.4,140.32,28.01314219]
[1641770655436,10.19,140.4,140.33,0.26]
[1641770655638,24.6374,140.43,140.33,0.26]
[1641770655838,24.6374,140.43,140.37,10.683]
[1641770656041,27.40337873,140.43,140.37,10.683]
[1641770656239,27.40337873,140.43,140.35,31.45460708]
[1641770656539,27.40337873,140.43,140.35,31.70460708]
[1641770656940,27.65337873,140.43,140.35,31.70460708]
[1641770657540,0.25,140.43,140.35,31.70460708]
[1641770657941,0.25,140.43,140.36,10.6838]
[1641770658140,10.19,140.44,140.36,10.6838]
[1641770658339,10.19,140.44,140.36,10.9338]
[1641770658543,33.34148132,140.44,140.36,10.9338]
[1641770658841,0.26,140.43,140.36,0.25]
[1641770659039,0.26,140.43,140.35,31.45460708]
[1641770659539,3.26,140.43,140.35,31.45460708]
[1641770660042,3.51,140.43,140.35,31.45460708]
[1641770660239,3.51,140.43,140.35,31.59267125]
[1641770660240,3.26,140.43,140.35,31.59267125]
[1641770660443,9.94,140.44,140.35,42.27717125]
[1641770660640,9.94,140.44,140.36,0.26]
[1641770661039,9.94,140.44,140.35,31.59267125]
[1641770661242,9.94,140.44,140.36,0.26]
[1641770661439,9.94,140.44,140.38,10.6822]
[1641770661940,0.26,140.43,140.35,0.38806417]
[1641770662540,0.26,140.43,140.35,0.39806417]
[1641770662946,0.26,140.43,140.35,23.01325165]
[1641770663445,0.26,140.43,140.36,10.6832]
[1641770663849,0.26,140.43,140.36,10.9332]
[1641770664048,13.2,140.43,140.35,0.13806417]
[1641770664254,21.951,140.43,140.35,0.13806417]
[1641770664453,32.8882,140.43,140.35,0.13806417]
[1641770664856,28.11259237,140.42,140.35,0.13806417]
[1641770665053,13.2,140.41,140.35,0.13806417]
[1641770665454,24.1387,140.41,140.35,0.13806417]
[1641770665860,13.45,140.41,140.35,0.13806417]
[1641770666060,10.45,140.41,140.35,0.13806417]
[1641770666461,3.0,140.4,140.35,0.13806417]
[1641770666660,9.94,140.39,140.35,0.13806417]
[1641770666860,1.78,140.38,140.35,0.13806417]
[1641770667059,10.2,140.37,140.35,0.13806417]
[1641770667258,16.26430001,140.37,140.35,0.13806417]
[1641770667461,3.0,140.36,140.35,0.13806417]
[1641770667661,12.94,140.36,140.35,0.13806417]
[1641770667862,13.2,140.36,140.35,0.13806417]
[1641770669062,12.94,140.36,140.35,0.13806417]
[1641770669260,9.94,140.36,140.35,0.13806417]
[1641770669667,9.94,140.41,140.35,0.13806417]
[1641770669866,1.78,140.4,140.35,0.13806417]
[1641770670065,23.97164348,140.42,140.35,12.60369003]
[1641770670466,9.94,140.41,140.35,10.82286417]
[1641770671670,9.94,140.41,140.35,11.07286417]
[1641770672071,0.26,140.4,140.35,11.07286417]
[1641770673071,29.04901394,140.4,140.35,10.82286417]
[1641770673305,9.94,140.39,140.35,0.13806417]
[1641770673497,0.26,140.38,140.35,0.13806417]
[1641770673701,16.00430001,140.37,140.35,0.13806417]
[1641770673899,16.25430001,140.37,140.35,0.13806417]
[1641770674100,23.26334172,140.36,140.35,0.13806417]
[1641770674302,33.20334172,140.36,140.35,0.13806417]
[1641770674499,33.45334172,140.36,140.35,0.13806417]
[1641770674701,33.20334172,140.36,140.35,0.13806417]
[1641770675906,9.94,140.36,140.35,0.13806417]
[1641770677513,10.45,140.36,140.35,0.13806417]
[1641770677916,10.2,140.36,140.35,0.13806417]
[1641770678515,10.45,140.36,140.35,0.13806417]
[1641770678914,10.2,140.36,140.35,0.13806417]
[1641770679314,36.17465049,140.36,140.35,0.13806417]
[1641770679518,36.42465049,140.36,140.35,0.13806417]
[1641770680314,39.42465049,140.36,140.35,0.13806417]
[1641770680919,50.11675049,140.36,140.35,0.13806417]
[1641770681722,51.89675049,140.36,140.35,0.13806417]
[1641770683624,59.61175049,140.36,140.35,0.00806417]
[1641770683822,183.85175049,140.36,140.35,0.00806417]
[1641770684423,261.08015049,140.36,140.35,0.00806417]
[1641770685848,253.36515049,140.36,140.35,0.00806417]
[1641770686848,223.8805,140.36,140.35,0.00806417]
[1641770687051,9.94,140.36,140.35,0.00806417]
[1641770687251,9.94,140.36,140.35,7.12406417]
[1641770687547,6.06430001,140.37,140.35,7.12406417]
[1641770687548,3.03210004,140.37,140.35,7.12406417]
[1641770687748,9.94,140.39,140.35,7.12406417]
[1641770688149,9.94,140.39,140.35,0.00806417]
[1641770688348,10.19,140.39,140.35,0.00806417]
[1641770688750,4.78,140.38,140.35,0.00806417]
[1641770688950,9.94,140.37,140.35,0.00806417]
[1641770689149,29.03210004,140.36,140.35,0.00806417]
[1641770689350,68.6186354,140.36,140.35,0.00806417]
[1641770689552,2.01283583,140.29,140.26,2.01333537]
[1641770689853,11.722,140.28,140.26,2.01333537]
[1641770690049,14.982,140.28,140.26,3.537e-05]
[1641770690252,15.232,140.28,140.26,3.537e-05]
[1641770690451,3.03210004,140.27,140.14,553.37808383]
[1641770690653,11.722,140.26,140.19,36.73292916]
[1641770690851,14.982,140.26,140.19,36.73292916]
[1641770691052,15.232,140.26,140.19,26.03602916]
[1641770691653,15.232,140.26,140.19,36.73302916]
[1641770692456,13.19,140.26,140.2,0.26]
[1641770692855,9.94,140.26,140.2,0.26]
[1641770693055,35.31533583,140.29,140.2,0.26]
[1641770693455,0.26,140.28,140.2,0.26]
[1641770694156,25.82244405,140.28,140.2,0.26]
[1641770694357,9.94,140.27,140.12,79.27142335]
[1641770694557,9.94,140.27,140.13,3.0]
[1641770694558,0.26,140.26,140.13,3.0]
[1641770694763,9.94,140.25,140.13,3.0]
[1641770695061,3.26,140.24,140.13,3.0]
[1641770695260,3.26,140.24,140.14,26.49043973]
[1641770695460,3.51,140.24,140.14,26.74043973]
[1641770695662,13.45,140.24,140.15,3.26]
[1641770695865,13.45,140.24,140.16,10.6993]
[1641770696065,13.45,140.24,140.17,32.96579906]
[1641770696265,13.45,140.24,140.16,10.6993]
[1641770696468,24.018,140.24,140.13,35.6626]
[1641770696666,46.1333,140.24,140.14,3.0]
[1641770696867,46.1333,140.24,140.16,10.6993]
[1641770697066,45.8733,140.24,140.16,10.6993]
[1641770697268,0.26,140.23,140.16,10.6993]
[1641770697467,0.26,140.23,140.16,10.9493]
[1641770697868,9.94,140.22,140.16,10.9493]
[1641770698069,0.26,140.21,140.17,24.72046898]
[1641770698269,9.94,140.24,140.17,35.66856898]
[1641770698467,9.94,140.28,140.17,35.66856898]
[1641770699069,9.94,140.28,140.18,0.26]
[1641770699269,29.87139786,140.27,140.18,0.26]
[1641770699468,10.2,140.26,140.2,10.6956]
[1641770699669,10.2,140.26,140.18,0.26]
[1641770700074,9.94,140.26,140.18,0.26]
[1641770700972,9.94,140.26,140.18,10.9572]
[1641770701171,9.94,140.26,140.18,11.2072]
[1641770701971,10.19,140.26,140.18,11.2072]
[1641770702172,10.19,140.26,140.18,10.6972]
[1641770702577,10.19,140.26,140.17,24.72046898]
[1641770703808,9.94,140.26,140.17,24.72046898]
[1641770704006,9.94,140.26,140.17,35.41906898]
[1641770704208,9.94,140.26,140.18,0.26]
[1641770704814,9.94,140.26,140.17,24.97046898]
[1641770705009,9.94,140.26,140.18,0.26]
[1641770705315,9.94,140.26,140.21,10.6954]
[1641770705511,9.94,140.26,140.19,1.78082586]
[1641770705708,9.94,140.26,140.2,7.377]
[1641770705908,25.37533583,140.29,140.2,7.887]
[1641770706309,25.62533583,140.29,140.21,29.58710097]
[1641770706510,35.56533583,140.29,140.21,29.58710097]
[1641770707310,35.56533583,140.29,140.23,10.6933]
[1641770708814,35.56533583,140.29,140.21,40.28200097]
[1641770714117,0.26,140.28,140.21,10.6949]
[1641770714744,0.26,140.28,140.21,10.9449]
[1641770715244,0.26,140.28,140.22,27.97064647]
[1641770715448,0.26,140.28,140.22,38.16544647]
[1641770715646,11.71283583,140.29,140.22,38.16544647]
[1641770716751,11.71283583,140.29,140.22,10.6948]
[1641770716954,11.96283583,140.29,140.21,10.9455]
[1641770717149,11.71283583,140.29,140.21,10.9455]
[1641770717351,0.26,140.28,140.21,10.9455]
[1641770718650,0.26,140.28,140.21,10.6955]
[1641770721761,0.26,140.28,140.22,26.88031452]
[1641770724857,10.2,140.28,140.21,10.6955]
[1641770725060,10.45,140.28,140.19,14.70610565]
[1641770725459,19.187,140.28,140.19,14.70610565]
[1641770725664,19.187,140.28,140.17,4.00970565]
[1641770725860,27.43578632,140.27,140.17,4.00970565]
[1641770726060,22.6819,140.26,140.17,4.00970565]
[1641770726262,45.2921,140.26,140.17,4.00970565]
[1641770726462,45.5421,140.26,140.17,4.03687151]
[1641770727568,45.5421,140.26,140.16,25.92721714]
[1641770727767,45.5421,140.26,140.16,36.62651714]
[1641770728367,45.5421,140.26,140.17,4.03741221]
[1641770728567,34.8422,140.26,140.17,4.03741221]
[1641770728768,34.8422,140.26,140.17,14.73591221]
[1641770729571,34.5822,140.26,140.17,14.23591221]
[1641770729776,32.8002,140.26,140.17,14.23591221]
[1641770729974,32.8002,140.26,140.17,10.6985]
[1641770730777,2.042,140.25,140.16,4.00970565]
[1641770730974,9.94,140.24,140.16,4.00970565]
[1641770731175,1.782,140.23,140.16,4.00970565]
[1641770731377,9.94,140.22,140.16,4.00970565]
[1641770731574,26.45494373,140.21,140.13,4.00970565]
[1641770731776,36.39494373,140.21,140.13,4.00970565]
[1641770731974,36.39494373,140.21,140.13,4.25970565]
[1641770732375,36.39494373,140.21,140.12,34.23239849]
[1641770732576,36.39494373,140.21,140.13,0.26]
[1641770732776,36.39494373,140.21,140.13,10.9615]
[1641770732975,36.39494373,140.21,140.13,14.97120565]
[1641770733895,36.64494373,140.21,140.13,14.71120565]
[1641770734095,36.64494373,140.21,140.13,4.00970565]
[1641770734096,0.26,140.2,140.13,4.00970565]
[1641770734497,0.26,140.2,140.12,34.23239849]
[1641770734697,0.26,140.2,140.12,34.48239849]
[1641770735500,36.64494373,140.21,140.12,14.96190565]
[1641770735702,36.64494373,140.21,140.13,1.78082586]
[1641770735904,36.64494373,140.21,140.12,4.25970565]
[1641770736501,36.64494373,140.21,140.12,30.23416904]
[1641770736700,36.64494373,140.21,140.12,30.48416904]
[1641770736902,0.26,140.2,140.13,10.7009]
[1641770738005,36.39494373,140.21,140.13,10.9509]
[1641770738603,0.26,140.2,140.13,10.9509]
[1641770738805,0.26,140.2,140.13,14.96060565]
[1641770739004,0.26,140.2,140.14,1.78082586]
[1641770739205,36.39494373,140.21,140.14,1.78082586]
[1641770739206,36.39494373,140.21,140.14,12.48162586]
[1641770739405,36.39494373,140.21,140.14,10.7008]
[1641770739608,36.39494373,140.21,140.15,30.78355289]
[1641770739808,9.94,140.21,140.15,30.78355289]
[1641770740208,9.94,140.24,140.15,30.78355289]
[1641770740805,9.94,140.24,140.15,41.48325289]
[1641770741008,10.19,140.24,140.15,41.48325289]
[1641770741411,0.26,140.23,140.15,10.6997]
[1641770742810,0.26,140.23,140.16,23.42688088]
[1641770743011,10.19,140.24,140.16,34.12608088]
[1641770743812,10.19,140.24,140.16,10.6992]
[1641770744812,9.94,140.24,140.16,10.6992]
[1641770745013,9.94,140.24,140.16,10.9492]
[1641770745612,9.94,140.24,140.16,10.6992]
[1641770746613,10.19,140.24,140.16,10.6992]
[1641770748419,10.19,140.24,140.17,0.26]
[1641770748617,10.19,140.24,140.16,10.6992]
[1641770748818,10.19,140.24,140.17,0.26]
[1641770749016,10.19,140.24,140.16,10.6992]
[1641770749017,10.19,140.24,140.19,10.6968]
[1641770749218,9.94,140.24,140.15,67.06497887]
[1641770749420,9.94,140.24,140.15,67.31497887]
[1641770749818,0.26,140.23,140.15,67.31497887]
[1641770750221,0.26,140.24,140.15,67.31497887]
[1641770750621,0.26,140.24,140.17,10.6979]
[1641770756230,0.26,140.24,140.16,10.6994]
[1641770756430,0.26,140.24,140.16,10.9494]
[1641770757129,0.26,140.24,140.16,14.95910565]
[1641770760155,10.2,140.24,140.16,14.95910565]
[1641770760559,10.45,140.24,140.16,14.95910565]
[1641770760855,10.45,140.24,140.16,4.00970565]
[1641770761457,18.361,140.24,140.16,4.00970565]
[1641770761658,18.361,140.24,140.15,4.00970565]
[1641770761859,1.782,140.23,140.15,4.00970565]
[1641770762058,39.14247807,140.22,140.15,4.00970565]
[1641770762356,39.14247807,140.22,140.13,14.71130565]
[1641770762557,39.13247807,140.22,140.13,14.71130565]
[1641770762756,39.13247807,140.22,140.13,16.74213151]
[1641770763160,39.13247807,140.22,140.14,4.00970565]
[1641770763360,39.13247807,140.22,140.14,14.71050565]
[1641770763959,0.26,140.21,140.14,14.71050565]
[1641770765459,0.26,140.21,140.14,4.00970565]
[1641770765663,12.93866982,140.12,140.1,7.81714921]
[1641770765858,12.93866982,140.12,140.1,6.03632335]
[1641770766859,0.26,140.11,140.1,6.03632335]
[1641770767062,6.32430001,140.11,140.1,6.03632335]
[1641770767262,0.26,140.11,140.07,29.73229888]
[1641770767962,0.26,140.11,140.05,10.7071]
[1641770768964,0.26,140.11,140.05,34.25755011]
[1641770769963,0.26,140.11,140.05,23.55045011]
[1641770770966,0.26,140.11,140.04,10.7085]
[1641770771165,0.26,140.11,140.05,3.0]
[1641770771866,0.26,140.11,140.05,29.75072136]
[1641770773367,0.26,140.11,140.05,3.0]
[1641770774770,0.0087,140.26,140.23,3.91182586]
[1641770774971,1.784,140.33,140.24,3.26]
[1641770775170,1.784,140.33,140.28,0.31040264]
[1641770775374,9.94,140.4,140.29,25.0]
[1641770775572,1.78,140.39,140.27,6.865]
[1641770775771,29.98227425,140.38,140.29,1.78082586]
[1641770775971,29.98227425,140.38,140.25,1.78]
[1641770776173,1.78,140.37,140.24,1.78082586]
[1641770776373,1.78,140.37,140.23,29.1277915]
[1641770776776,1.78,140.37,140.24,3.0]
[1641770777072,1.78,140.37,140.23,30.90861736]
[1641770777973,2.03,140.37,140.23,30.90861736]
[1641770778574,2.03,140.37,140.23,41.85251736]
[1641770778874,1.78,140.37,140.23,41.85251736]
[1641770779074,1.78,140.37,140.24,0.26]
[1641770779276,1.78,140.37,140.26,27.35548503]
[1641770779475,29.98227425,140.38,140.26,37.54548503]
[1641770779673,29.98227425,140.38,140.27,10.6908]
[1641770779876,1.78,140.37,140.25,1.78082586]
[1641770780876,1.78,140.37,140.26,25.12038251]
[1641770781178,2.03,140.37,140.27,1.78082586]
[1641770781578,1.78,140.37,140.24,13.50082586]
[1641770781784,1.78,140.37,140.27,10.6909]
[1641770783078,2.03,140.37,140.27,10.6909]
[1641770783482,0.26,140.36,140.27,10.6909]
[1641770783882,1.78,140.37,140.27,10.6909]
[1641770784081,29.98227425,140.38,140.29,19.23133137]
[1641770784283,1.78,140.39,140.3,1.78]
[1641770784482,9.94,140.4,140.3,1.78]
[1641770785183,27.91076676,140.39,140.3,1.78]
[1641770785383,29.69076676,140.39,140.29,19.23133137]
[1641770785584,0.26,140.38,140.29,29.92073137]
[1641770785807,0.26,140.38,140.28,1.78]
[1641770786008,1.78,140.37,140.26,1.78]
[1641770786410,0.26,140.36,140.26,2.03]
[1641770786608,0.26,140.36,140.27,10.6903]
[1641770786812,29.83435344,140.36,140.28,1.78]
[1641770787009,0.26,140.35,140.28,1.78]
[1641770787814,0.26,140.35,140.28,21.03830342]
[1641770788014,0.26,140.37,140.28,31.72850342]
[1641770788417,0.26,140.38,140.28,31.72850342]
[1641770788817,30.76830677,140.38,140.28,31.72850342]
[1641770789517,31.01830677,140.38,140.28,31.72850342]
[1641770791720,31.01830677,140.38,140.29,10.9487]
[1641770791922,31.01830677,140.38,140.29,10.6887]
[1641770792119,31.01830677,140.38,140.28,19.25830342]
[1641770792320,1.78,140.37,140.28,19.25830342]
[1641770792522,0.26,140.36,140.29,1.78]
[1641770792720,0.26,140.36,140.26,1.78]
[1641770793020,0.26,140.36,140.26,5.03]
[1641770793622,0.26,140.36,140.26,4.78]
[1641770794024,28.40225761,140.34,140.26,4.78]
[1641770794224,1.78,140.33,140.26,4.78]
[1641770794429,0.51,140.33,140.26,4.78]
[1641770794623,0.51,140.33,140.26,1.78]
[1641770795523,5.29,140.33,140.26,1.78]
[1641770795723,5.04,140.33,140.26,1.78]
[1641770795923,5.29,140.33,140.26,1.78]
[1641770796423,2.29,140.33,140.26,1.78]
[1641770796622,2.29,140.33,140.23,5.69182586]
[1641770796825,0.51,140.33,140.23,5.94182586]
[1641770797127,0.26,140.33,140.23,5.94182586]
[1641770797327,0.25,140.34,140.23,7.72265172]
[1641770797526,2.032,140.36,140.24,13.2]
[1641770797725,2.032,140.36,140.25,1.78]
[1641770797924,2.032,140.36,140.26,0.26]
[1641770798332,32.40454969,140.36,140.26,21.36296219]
[1641770798732,0.26,140.35,140.26,21.36296219]
[1641770798928,0.26,140.35,140.27,10.6907]
[1641770800029,32.40454969,140.36,140.27,10.6907]
[1641770800930,2.032,140.36,140.27,10.9407]
[1641770801131,2.032,140.36,140.28,0.26]
[1641770801330,0.25,140.36,140.31,10.6879]
[1641770801530,0.25,140.37,140.31,10.6879]
[1641770801930,28.99691958,140.38,140.31,10.6879]
[1641770802134,28.49691958,140.38,140.31,10.6879]
[1641770802332,28.74691958,140.38,140.31,10.6879]
[1641770803137,28.49691958,140.38,140.31,10.6879]
[1641770803332,98.2543,140.39,140.31,10.6879]
[1641770803533,9.94,140.42,140.32,2.04]
[1641770803733,9.94,140.42,140.32,12.7267]
[1641770803934,3.0,140.41,140.32,12.4667]
[1641770804131,9.94,140.42,140.32,12.4667]
[1641770804132,27.85901598,140.4,140.32,12.4667]
[1641770804332,26.07901598,140.4,140.32,12.4667]
[1641770804960,26.32901598,140.4,140.32,12.4667]
[1641770805659,26.07901598,140.4,140.32,10.6867]
[1641770806059,0.26,140.39,140.32,10.6867]
[1641770806860,0.26,140.39,140.32,34.39813629]
[1641770807262,0.25,140.4,140.33,1.78]
[1641770807461,25.3129,140.43,140.34,10.6854]
[1641770808062,49.42194811,140.43,140.34,10.6854]
[1641770808462,49.42194811,140.43,140.32,10.6867]
[1641770809461,0.26,140.42,140.32,10.6867]
[1641770809664,25.97248677,140.4,140.32,10.6867]
[1641770810065,0.26,140.39,140.32,10.6867]
[1641770810966,26.22248677,140.4,140.33,0.26]
[1641770811166,26.22248677,140.4,140.35,10.6847]
[1641770811370,0.26,140.39,140.34,1.78]
[1641770811567,0.26,140.39,140.3,9.94]
[1641770811766,0.26,140.39,140.31,5.04]
[1641770812167,0.26,140.39,140.33,10.6862]
[1641770814872,0.26,140.39,140.33,10.9362]
[1641770815071,0.26,140.4,140.33,10.9362]
[1641770815271,0.26,140.4,140.33,10.6862]
[1641770815471,0.26,140.41,140.33,10.6862]
[1641770815672,1.78,140.4,140.33,10.6862]
[1641770816071,0.26,140.39,140.33,10.6862]
[1641770816772,0.26,140.39,140.33,37.13901409]
[1641770817972,0.26,140.4,140.33,10.6862]
[1641770818573,0.26,140.4,140.33,10.9362]
[1641770818775,0.26,140.41,140.33,10.9362]
[1641770819073,2.26477899,140.42,140.34,0.26]
[1641770819379,25.49371985,140.42,140.35,10.6842]
[1641770820573,0.26,140.41,140.35,10.6842]
[1641770822679,0.26,140.41,140.33,1.78]
[1641770822876,2.04,140.41,140.33,10.6857]
[1641770823077,2.04,140.41,140.31,66.97092586]
[1641770823078,2.29,140.41,140.31,4.78]
[1641770823379,2.29,140.41,140.31,3.0]
[1641770823677,4.30477899,140.41,140.3,75.925]
[1641770823878,4.30477899,140.41,140.3,74.395]
[1641770824079,4.30477899,140.41,140.3,74.145]
[1641770824279,4.30477899,140.41,140.32,10.6871]
[1641770824479,4.30477899,140.41,140.3,74.145]
[1641770825283,2.01477899,140.4,140.29,1.78]
[1641770825481,2.04,140.39,140.29,1.78]
[1641770825882,79.85417899,140.39,140.29,1.78]
[1641770826282,26.44071441,140.38,140.29,1.78]
[1641770826484,2.04,140.37,140.27,1.78]
[1641770826683,1.78,140.37,140.27,4.78]
[1641770826883,1.78,140.37,140.27,6.81082586]
[1641770826884,2.03,140.37,140.27,6.81082586]
[1641770827084,2.03,140.37,140.28,0.26]
[1641770827288,0.25,140.37,140.29,1.78]
[1641770827486,28.4554934,140.38,140.29,1.78]
[1641770827689,28.4554934,140.38,140.28,1.78]
[1641770827890,28.4554934,140.38,140.28,12.4695]
[1641770828088,28.4554934,140.38,140.28,12.7195]
[1641770828288,26.44071441,140.38,140.28,12.7195]
[1641770828489,0.26,140.37,140.28,12.7195]
[1641770828689,0.26,140.37,140.28,12.4695]
[1641770828893,0.26,140.37,140.28,1.78]
[1641770829692,30.95278174,140.35,140.27,4.78]
[1641770830193,0.26,140.34,140.27,4.78]
[1641770830808,0.26,140.34,140.27,15.4707]
[1641770831809,0.26,140.34,140.27,13.6907]
[1641770834913,0.26,140.34,140.27,3.0]
[1641770835314,0.26,140.34,140.26,76.197]
[1641770836014,0.26,140.34,140.26,1.78]
[1641770836214,0.26,140.34,140.26,12.4717]
[1641770836615,0.26,140.34,140.26,10.6917]
[1641770840319,0.26,140.34,140.26,10.9417]
[1641770841922,0.26,140.34,140.26,10.6917]
[1641770842522,0.26,140.34,140.26,10.9417]
[1641770846030,0.26,140.34,140.26,10.6917]
[1641770848930,0.26,140.34,140.26,10.9417]
[1641770850532,0.26,140.34,140.26,10.6917]
[1641770852737,0.25,140.35,140.26,10.6917]
[1641770852939,2.26477899,140.36,140.27,0.26]
[1641770853140,2.01477899,140.36,140.31,10.6879]
[1641770853939,2.01477899,140.39,140.31,10.6879]
[1641770854341,0.26,140.38,140.29,1.78]
[1641770854540,2.04,140.38,140.29,12.65122431]
[1641770854743,0.26,140.38,140.29,12.65122431]
[1641770855342,2.01477899,140.37,140.29,10.6891]
[1641770855542,28.15476136,140.36,140.29,10.6891]
[1641770855944,28.40476136,140.36,140.29,10.6891]
[1641770858848,28.40476136,140.36,140.27,25.4103]
[1641770859050,28.40476136,140.36,140.27,23.6303]
[1641770860549,28.40476136,140.36,140.27,23.8803]
[1641770861949,28.40476136,140.36,140.27,23.6303]
[1641770862849,30.41954035,140.36,140.27,23.6303]
[1641770863149,30.15954035,140.36,140.27,42.94136341]
[1641770863350,30.15954035,140.36,140.27,43.19136341]
[1641770863550,28.14476136,140.36,140.27,43.19136341]
[1641770863750,28.14476136,140.36,140.3,10.6886]
[1641770864777,0.26,140.35,140.3,10.6886]
[1641770867882,0.26,140.35,140.28,12.4696]
[1641770868082,0.26,140.35,140.29,3.0]
[1641770870584,1.78,140.34,140.26,1.96212431]
[1641770870784,12.4743,140.34,140.26,1.96212431]
[1641770870983,0.26,140.33,140.26,1.96212431]
[1641770871183,1.78,140.32,140.26,1.96212431]
[1641770871586,27.80323278,140.31,140.26,1.96212431]
[1641770871785,1.782,140.3,140.23,3.91182586]
[1641770871986,0.26,140.29,140.23,3.91182586]
[1641770872283,1.782,140.3,140.23,4.16182586]
[1641770872483,25.51747899,140.33,140.23,7.72465172]
[1641770872683,25.51747899,140.33,140.24,1.782]
[1641770872882,2.26477899,140.33,140.24,2.042]
[1641770873086,2.01477899,140.33,140.25,1.78082586]
[1641770873285,2.01477899,140.33,140.26,1.782]
[1641770873483,2.01477899,140.33,140.26,2.292]
[1641770873484,33.08903088,140.33,140.26,2.292]
[1641770873684,31.07425189,140.33,140.26,14.94562431]
[1641770874086,0.26,140.32,140.26,14.94562431]
[1641770876688,0.26,140.32,140.26,13.16362431]
[1641770876992,0.26,140.32,140.26,12.90362431]
[1641770878391,0.26,140.35,140.26,12.90362431]
[1641770878590,3.26,140.35,140.26,12.90362431]
[1641770878993,3.51,140.35,140.26,12.90362431]
[1641770879193,31.25230757,140.34,140.26,12.90362431]
[1641770879602,0.26,140.33,140.26,12.90362431]
[1641770879795,0.26,140.33,140.26,12.65362431]
[1641770879995,0.26,140.33,140.26,1.96212431]
[1641770880596,3.26,140.33,140.25,1.782]
[1641770880997,3.26,140.33,140.25,12.4744]
[1641770880998,3.51,140.33,140.25,12.4744]
[1641770881198,3.51,140.33,140.25,39.10139696]
[1641770881598,3.51,140.33,140.26,0.26]
[1641770881798,0.26,140.33,140.26,0.26]
[1641770882301,3.26,140.35,140.26,1.78]
[1641770882499,2.01477899,140.36,140.26,12.7212]
[1641770882700,2.01477899,140.36,140.26,24.44202586]
[1641770882901,100.0707,140.37,140.26,26.40415017]
[1641770883436,123.43738499,140.37,140.27,0.26]
[1641770883638,124.96738499,140.37,140.29,1.96212431]
[1641770883837,123.18738499,140.37,140.29,1.96212431]
[1641770884039,0.26,140.36,140.29,1.96212431]
[1641770884236,0.26,140.36,140.28,12.4698]
[1641770885737,0.26,140.36,140.28,10.6898]
[1641770886638,0.26,140.36,140.27,1.78]
[1641770886840,0.26,140.36,140.26,95.4135]
[1641770887037,2.04,140.36,140.26,93.6335]
[1641770887443,2.29,140.36,140.26,93.6335]
[1641770887944,2.52477899,140.36,140.26,93.8835]
[1641770888148,2.52477899,140.36,140.26,20.631]
[1641770888343,4.78,140.35,140.24,1.96212431]
[1641770888551,0.26,140.34,140.24,1.96212431]
[1641770889145,31.57621472,140.34,140.24,1.96212431]
[1641770889347,44.28539371,140.34,140.23,3.91182586]
[1641770889546,4.782,140.33,140.23,3.91182586]
[1641770889948,0.26,140.32,140.23,3.91182586]
[1641770890145,1.782,140.31,140.23,3.91182586]